bitfinex/quotes_SOLUSD_20240626
["timestamp","ask_amount","ask_price","bid_price","bid_amount"]
[1719363284588,7.3104,136.79,136.76,0.34]
[1719363284875,19.1302649,136.84,136.76,0.34]
[1719363284876,7.31,136.8,136.76,0.34]
[1719363285684,7.31,136.8,136.76,7.652]
[1719363285883,7.3093,136.82,136.77,7.3113]
[1719363286212,7.3099,136.8,136.76,7.6519]
[1719363286496,7.3099,136.8,136.76,34.6319]
[1719363286699,7.3099,136.8,136.76,7.6519]
[1719363287596,7.3095,136.81,136.76,7.6519]
[1719363288190,7.3095,136.81,136.76,34.6319]
[1719363290792,7.3095,136.81,136.76,7.6519]
[1719363291600,7.3095,136.81,136.77,7.3114]
[1719363293807,7.31,136.8,136.76,0.17]
[1719363294122,19.1302649,136.84,136.75,25.5937]
[1719363294318,7.3113,136.78,136.73,13.5436]
[1719363294496,7.3113,136.78,136.74,7.3131]
[1719363294814,18.2727,136.82,136.75,7.3125]
[1719363295017,7.3104,136.8,136.75,7.3125]
[1719363297311,7.3095,136.81,136.76,7.3119]
[1719363297712,7.3099,136.8,136.76,7.3119]
[1719363297912,7.3099,136.8,136.75,7.3124]
[1719363298301,51.63386978,136.83,136.75,7.3124]
[1719363298502,7.31,136.8,136.75,7.3124]
[1719363298800,7.3104,136.79,136.75,7.3124]
[1719363299191,7.3104,136.79,136.74,25.7654]
[1719363299510,40.97655783,136.83,136.75,0.17]
[1719363299717,18.2733,136.82,136.75,0.17]
[1719363299929,18.2752,136.8,136.74,0.34]
[1719363300218,7.3122,136.76,136.73,6.2303]
[1719363300598,7.3117,136.77,136.73,6.2303]
[1719363301004,7.3111,136.78,136.73,13.5438]
[1719363301223,16.4881,136.8,136.73,24.5143]
[1719363301513,7.3099,136.8,136.75,25.5936]
[1719363301689,20.0,136.81,136.75,18.2814]
[1719363301890,7.3111,136.78,136.74,0.17]
[1719363302115,7.3111,136.78,136.73,13.5437]
[1719363302917,7.3111,136.78,136.74,7.313]
[1719363303118,7.3105,136.79,136.74,7.313]
[1719363303412,0.8599649,136.84,136.83,138.34921409]
[1719363303602,0.8599649,136.84,136.83,133.74921409]
[1719363303915,35.4603445,136.84,136.83,133.74921409]
[1719363304112,27.8399649,136.84,136.83,133.74921409]
[1719363304695,53.4172649,136.84,136.83,133.74921409]
[1719363305814,73.4172649,136.84,136.83,133.74921409]
[1719363306612,79.92439186,136.84,136.83,133.74921409]
[1719363307304,80.26439186,136.84,136.83,133.74921409]
[1719363308100,80.26439186,136.84,136.83,128.68013826]
[1719363310716,53.28439186,136.84,136.83,110.28013826]
[1719363310911,53.28439186,136.84,136.83,105.68013826]
[1719363311113,53.28439186,136.84,136.83,101.08013826]
[1719363312327,53.28439186,136.84,136.83,94.08013826]
[1719363313639,53.28439186,136.84,136.83,84.08013826]
[1719363319409,53.28439186,136.84,136.83,82.08013826]
[1719363322244,53.28439186,136.84,136.83,71.75643826]
[1719363329252,53.28439186,136.84,136.83,61.78743826]
[1719363329538,53.28439186,136.84,136.83,51.06843826]
[1719363340762,52.94439186,136.84,136.83,51.06843826]
[1719363341062,32.94439186,136.84,136.83,51.06843826]
[1719363342362,52.94439186,136.84,136.83,51.06843826]
[1719363347666,14.67489186,136.84,136.83,51.06843826]
[1719363347960,8.1677649,136.84,136.83,51.06843826]
[1719363349257,0.8599649,136.84,136.83,51.06843826]
[1719363349758,13.17656958,136.88,136.84,6.4367]
[1719363349759,13.97524262,136.88,136.84,6.4367]
[1719363350428,6.66944262,136.88,136.84,7.3077]
[1719363350628,7.3041,136.91,136.86,7.3063]
[1719363350867,6.50712696,136.92,136.86,7.3063]
[1719363350868,7.3046,136.9,136.86,7.3063]
[1719363351067,7.3046,136.9,136.85,75.9962]
[1719363351243,7.3046,136.9,136.85,48.9962]
[1719363351558,7.3052,136.89,136.85,41.6892]
[1719363352349,6.50712696,136.92,136.85,41.6892]
[1719363352350,7.3057,136.88,136.85,23.4215]
[1719363353171,7.3057,136.88,136.85,23.0815]
[1719363355335,24.76652696,136.92,136.85,23.0815]
[1719363355336,7.3053,136.89,136.85,23.0815]
[1719363355854,7.3058,136.88,136.85,23.0815]
[1719363358545,7.3051,136.89,136.85,23.0815]
[1719363359154,7.3057,136.88,136.85,23.0815]
[1719363360042,6.50712696,136.92,136.85,23.0815]
[1719363360249,7.3046,136.9,136.86,7.3065]
[1719363360482,7.3046,136.9,136.85,30.3886]
[1719363360969,6.50712696,136.94,136.85,23.0815]
[1719363360970,7.3064,136.87,136.85,23.0815]
[1719363361147,18.2609,136.91,136.85,23.0815]
[1719363361148,7.3058,136.88,136.85,23.0815]
[1719363361557,7.3052,136.89,136.85,23.0815]
[1719363362668,7.3067,136.86,136.85,23.0815]
[1719363362840,7.3078,136.84,136.83,51.06843826]
[1719363366062,7.3074,136.85,136.83,51.06843826]
[1719363367072,7.3078,136.84,136.83,51.06843826]
[1719363367969,7.3068,136.86,136.83,51.06843826]
[1719363368674,6.50712696,136.89,136.83,51.06843826]
[1719363368863,7.3063,136.87,136.83,51.06843826]
[1719363369159,7.3069,136.86,136.83,51.06843826]
[1719363369362,6.50712696,136.89,136.83,51.06843826]
[1719363369569,7.3063,136.87,136.83,51.06843826]
[1719363369767,7.3067,136.86,136.83,51.06843826]
[1719363371366,7.3072,136.85,136.83,51.06843826]
[1719363372463,7.3078,136.84,136.83,51.06843826]
[1719363375982,7.3063,136.87,136.83,51.06843826]
[1719363376299,7.3063,136.87,136.83,58.37663826]
[1719363377571,7.3063,136.87,136.83,51.06843826]
[1719363377754,7.3067,136.86,136.83,51.06843826]
[1719363378652,7.3072,136.85,136.83,51.06843826]
[1719363380362,7.3069,136.86,136.83,51.06843826]
[1719363381578,18.2642,136.88,136.83,51.06843826]
[1719363381974,7.3078,136.84,136.83,51.06843826]
[1719363386791,7.3068,136.86,136.83,51.06843826]
[1719363387290,7.3063,136.87,136.83,51.06843826]
[1719363387604,7.3068,136.86,136.83,51.06843826]
[1719363388089,7.3062,136.87,136.83,51.06843826]
[1719363388593,7.3069,136.86,136.83,51.06843826]
[1719363388796,7.3072,136.85,136.83,51.06843826]
[1719363390289,7.3078,136.84,136.83,51.06843826]
[1719363404389,18.2655,136.87,136.83,51.06843826]
[1719363404390,7.3064,136.87,136.83,51.06843826]
[1719363404583,7.3063,136.87,136.83,51.06843826]
[1719363404901,7.3063,136.87,136.83,58.37673826]
[1719363405202,7.3063,136.87,136.83,51.06843826]
[1719363406201,7.3068,136.86,136.83,51.06843826]
[1719363407291,7.3078,136.84,136.83,51.06843826]
[1719363409806,7.3078,136.84,136.83,51.06843826]
[1719363414219,27.4778,136.84,136.83,31.05852251]
[1719363414397,27.6478,136.84,136.83,0.45852251]
[1719363414592,34.15492696,136.84,136.83,2.251e-05]
[1719363417602,41.75838944,136.84,136.83,2.251e-05]
[1719363423227,7.3124,136.76,136.74,16.3689]
[1719363424119,7.3117,136.77,136.74,16.3689]
[1719363425418,7.3112,136.78,136.74,16.3689]
[1719363425818,7.3112,136.78,136.74,23.682]
[1719363426022,7.3112,136.78,136.74,16.3689]
[1719363427328,24.77892696,136.83,136.74,16.3689]
[1719363427505,7.3094,136.81,136.78,16.2761]
[1719363428322,7.3099,136.8,136.78,16.2761]
[1719363429137,7.3095,136.81,136.78,16.2761]
[1719363429305,7.3101,136.8,136.78,16.2761]
[1719363432303,7.312,136.76,136.75,21.7767]
[1719363433116,7.3114,136.78,136.75,21.7767]
[1719363433319,7.3116,136.77,136.75,21.7767]
[1719363434912,7.312,136.76,136.75,21.7767]
[1719363435327,7.312,136.76,136.75,6.2233]
[1719363436721,27.3109,136.79,136.75,6.2233]
[1719363436910,20.0,136.79,136.75,6.2233]
[1719363437112,20.0,136.8,136.75,6.2233]
[1719363437314,7.3117,136.77,136.75,6.2233]
[1719363439742,20.0,136.8,136.75,6.2233]
[1719363439743,6.50712696,136.83,136.76,18.2797]
[1719363440043,7.3102,136.8,136.76,18.2797]
[1719363440243,7.3111,136.78,136.75,6.2233]
[1719363440943,7.3116,136.77,136.75,6.2233]
[1719363443553,7.312,136.76,136.75,6.2233]
[1719363444118,7.3117,136.77,136.75,6.2233]
[1719363444321,20.0,136.76,136.69,6.2796]
[1719363444522,7.3145,136.72,136.69,6.2796]
[1719363444719,7.3152,136.7,136.69,6.2796]
[1719363445248,7.3158,136.69,136.68,16.3608]
[1719363445443,7.3158,136.69,136.66,6.3955]
[1719363446526,18.2845,136.73,136.66,6.3955]
[1719363446734,7.3153,136.7,136.66,6.3955]
[1719363447644,7.3158,136.69,136.66,6.3955]
[1719363449453,7.3154,136.7,136.66,6.3955]
[1719363449827,7.3154,136.7,136.66,13.7129]
[1719363451835,7.3158,136.69,136.66,6.3955]
[1719363453753,7.3154,136.7,136.66,6.3955]
[1719363453958,7.3159,136.69,136.66,6.3955]
[1719363456554,7.3163,136.68,136.66,6.3955]
[1719363456753,7.316,136.69,136.66,6.3955]
[1719363458137,25.84223525,136.73,136.66,6.3955]
[1719363458138,18.2873,136.71,136.66,6.3955]
[1719363458343,7.3168,136.67,136.66,6.3955]
[1719363458652,7.3168,136.67,136.65,15.5463]
[1719363463263,7.3174,136.66,136.65,15.5463]
[1719363463953,7.3174,136.66,136.63,6.5724]
[1719363467860,7.3167,136.68,136.64,0.17]
[1719363468034,7.3167,136.68,136.64,0.34]
[1719363468447,7.3182,136.65,136.62,15.8322]
[1719363469941,7.3176,136.66,136.62,15.8322]
[1719363470935,7.3181,136.65,136.62,15.8322]
[1719363471456,18.2925,136.67,136.6,6.0005]
[1719363471639,20.0,136.66,136.6,6.0005]
[1719363471961,7.3196,136.62,136.6,6.0005]
[1719363472353,7.3191,136.63,136.6,6.0005]
[1719363473382,7.3198,136.62,136.58,16.1196]
[1719363474968,7.3198,136.62,136.58,23.4412]
[1719363476269,7.3207,136.6,136.57,6.3115]
[1719363478179,7.3219,136.58,136.53,18.3101]
[1719363478385,7.3223,136.57,136.53,18.3101]
[1719363478579,7.3223,136.57,136.53,25.6344]
[1719363479084,7.3218,136.58,136.53,25.6344]
[1719363479874,7.3223,136.57,136.53,25.6344]
[1719363480460,7.3218,136.58,136.53,25.6344]
[1719363481954,7.3212,136.59,136.54,7.3236]
[1719363482173,7.3212,136.59,136.55,7.3232]
[1719363482560,7.3218,136.58,136.54,7.3237]
[1719363482876,7.3218,136.58,136.53,25.9742]
[1719363483062,7.3218,136.58,136.54,0.34]
[1719363483961,7.3218,136.58,136.54,7.6638]
[1719363485480,7.3213,136.59,136.54,7.6638]
[1719363486482,13.9893349,136.62,136.52,7.3248]
[1719363486675,18.3021,136.6,136.53,0.34]
[1719363486985,18.3046,136.58,136.51,6.456]
[1719363487487,7.3259,136.51,136.49,0.8599649]
[1719363487659,7.3251,136.52,136.49,0.8599649]
[1719363488074,18.3082,136.56,136.49,0.8599649]
[1719363488273,20.0,136.55,136.49,0.8599649]
[1719363488677,7.3241,136.54,136.49,8.1863649]
[1719363489492,7.3245,136.53,136.49,8.1863649]
[1719363490285,7.3253,136.52,136.49,0.8599649]
[1719363491989,7.3254,136.51,136.49,0.8599649]
[1719363492593,7.325,136.52,136.49,0.8599649]
[1719363492975,7.3244,136.53,136.49,0.8599649]
[1719363493382,7.3251,136.52,136.49,0.8599649]
[1719363495297,20.0,136.55,136.49,19.1753649]
[1719363495589,7.3241,136.54,136.49,19.1753649]
[1719363495772,38.3057,136.57,136.49,19.1753649]
[1719363495773,7.3247,136.53,136.49,19.1753649]
[1719363499474,7.3247,136.53,136.49,26.5017649]
[1719363499891,7.3239,136.54,136.5,7.3257]
[1719363500084,7.3235,136.55,136.51,7.3254]
[1719363500276,7.3241,136.54,136.49,19.1753649]
[1719363500477,7.3245,136.53,136.49,19.1753649]
[1719363500792,7.3245,136.53,136.49,26.5017649]
[1719363506898,7.3251,136.52,136.49,0.8599649]
[1719363509806,7.3245,136.53,136.49,8.1863649]
[1719363510177,7.324,136.54,136.49,8.1863649]
[1719363510692,7.3235,136.55,136.5,7.3256]
[1719363511505,7.3235,136.55,136.51,7.3254]
[1719363512485,27.3224,136.57,136.52,18.3122]
[1719363512816,7.3234,136.55,136.52,18.3122]
[1719363513000,7.324,136.54,136.5,7.3258]
[1719363513179,7.324,136.54,136.49,26.5014649]
[1719363513379,7.3244,136.53,136.49,26.5014649]
[1719363516389,7.324,136.54,136.49,26.5014649]
[1719363519488,7.324,136.54,136.5,7.3258]
[1719363521201,7.324,136.54,136.49,26.5014649]
[1719363522324,7.3245,136.53,136.49,19.1751649]
[1719363523517,7.3245,136.53,136.49,26.5015649]
[1719363523811,7.324,136.54,136.5,7.3258]
[1719363531205,7.324,136.54,136.49,26.6714649]
[1719363531420,7.3244,136.53,136.5,0.34]
[1719363531826,7.324,136.54,136.5,0.34]
[1719363532619,7.324,136.54,136.49,26.5014649]
[1719363532620,7.3256,136.51,136.49,0.8599649]
[1719363533794,7.3251,136.52,136.49,0.8599649]
[1719363540106,7.3241,136.54,136.49,8.1863649]
[1719363540639,7.3245,136.53,136.49,8.1863649]
[1719363541312,7.3245,136.53,136.49,0.8599649]
[1719363542130,7.3249,136.52,136.49,0.8599649]
[1719363542822,7.3239,136.54,136.5,0.17]
[1719363543027,14.02878391,136.58,136.51,16.5148]
[1719363543230,6.50712696,136.58,136.52,0.17]
[1719363543441,13.82922696,136.58,136.53,7.3241]
[1719363543728,7.3229,136.56,136.53,6.4331]
[1719363545735,7.3213,136.59,136.54,27.09]
[1719363545907,7.3213,136.59,136.54,45.3993]
[1719363546301,7.3208,136.6,136.56,15.3893]
[1719363546541,7.3202,136.61,136.56,33.6961]
[1719363546708,7.3202,136.61,136.58,6.3628]
[1719363546911,7.3197,136.62,136.58,6.3628]
[1719363547134,24.80182696,136.66,136.6,49.6171]
[1719363547135,7.3183,136.65,136.6,49.6171]
[1719363547636,7.3183,136.65,136.61,0.17]
[1719363547840,7.3183,136.65,136.61,0.34]
[1719363548429,7.3186,136.64,136.61,0.17]
[1719363548725,7.3186,136.64,136.6,15.2067]
[1719363550235,7.3186,136.64,136.6,22.5273]
[1719363550815,6.50712696,136.66,136.6,15.2067]
[1719363551039,7.3196,136.62,136.58,24.6661]
[1719363551325,7.3192,136.63,136.58,31.9877]
[1719363551715,7.3195,136.62,136.58,31.9877]
[1719363552722,7.3191,136.63,136.58,31.9877]
[1719363553325,18.2957,136.65,136.58,6.3628]
[1719363553526,7.3204,136.61,136.58,6.3628]
[1719363554531,7.3197,136.62,136.58,6.3628]
[1719363557336,7.3197,136.62,136.58,13.6844]
[1719363557631,7.3176,136.66,136.59,0.17]
[1719363557847,7.317,136.67,136.61,18.3]
[1719363558536,7.317,136.67,136.63,7.319]
[1719363559136,7.317,136.67,136.62,7.3193]
[1719363559514,7.3175,136.66,136.62,7.3193]
[1719363559831,7.3171,136.67,136.62,7.3193]
[1719363562516,7.3175,136.66,136.62,7.3193]
[1719363563314,7.3169,136.67,136.63,7.3188]
[1719363563529,7.3169,136.67,136.61,18.3]
[1719363563839,7.3176,136.66,136.62,7.3193]
[1719363564315,6.50712696,136.69,136.62,7.3192]
[1719363564316,7.3172,136.67,136.62,7.3192]
[1719363567040,7.3174,136.66,136.62,7.3192]
[1719363568441,7.317,136.67,136.62,7.3192]
[1719363568643,7.317,136.67,136.63,7.3189]
[1719363570314,7.317,136.67,136.62,7.3193]
[1719363571135,7.3174,136.66,136.62,7.3193]
[1719363571441,7.3169,136.67,136.62,7.3193]
[1719363571743,7.3175,136.66,136.61,18.64]
[1719363571925,7.3175,136.66,136.62,0.34]
[1719363572124,43.08772696,136.69,136.58,24.6666]
[1719363572424,18.2923,136.67,136.58,24.6666]
[1719363573441,7.3187,136.64,136.59,7.321]
[1719363574547,7.3187,136.64,136.6,7.3204]
[1719363574937,7.3181,136.65,136.61,7.32]
[1719363579144,7.3176,136.66,136.61,7.32]
[1719363580431,7.3181,136.65,136.61,7.32]
[1719363581343,7.3181,136.65,136.6,25.6215]
[1719363582533,7.3181,136.65,136.61,7.32]
[1719363584940,7.3181,136.65,136.6,25.6216]
[1719363585142,7.3185,136.64,136.6,25.6216]
[1719363586055,7.3185,136.64,136.6,18.3011]
[1719363588434,7.3181,136.65,136.6,18.3011]
[1719363589141,7.3185,136.64,136.6,18.3011]
[1719363589331,18.2938,136.66,136.58,7.3215]
[1719363590250,7.3199,136.62,136.57,25.6266]
[1719363591158,7.3192,136.63,136.58,7.3215]
[1719363592154,7.3196,136.62,136.58,7.3215]
[1719363592950,7.3192,136.63,136.58,7.3215]
[1719363593828,7.3187,136.64,136.59,7.3208]
[1719363594255,7.3187,136.64,136.59,25.6236]
[1719363594636,6.50712696,136.66,136.59,18.3028]
[1719363594957,6.50712696,136.66,136.59,25.6235]
[1719363594958,7.3188,136.64,136.59,25.6235]
[1719363595343,7.3191,136.63,136.59,25.6235]
[1719363595864,38.2954,136.65,136.56,18.3063]
[1719363596071,38.2954,136.65,136.57,0.34]
[1719363597159,7.3198,136.62,136.57,0.34]
[1719363597351,7.3191,136.63,136.58,7.3214]
[1719363597652,7.3191,136.63,136.59,7.321]
[1719363597956,7.3191,136.63,136.58,25.6252]
[1719363599034,7.3191,136.63,136.59,7.321]
[1719363600136,7.3191,136.63,136.58,25.6252]
[1719363600340,7.3197,136.62,136.58,25.6252]
[1719363600953,7.3192,136.63,136.58,25.6252]
[1719363601149,7.3174,136.66,136.61,7.3196]
[1719363601658,7.3159,136.69,136.64,7.3181]
[1719363601834,6.50712696,136.71,136.63,7.3188]
[1719363602037,7.3172,136.67,136.62,25.6183]
[1719363602343,7.3177,136.66,136.62,18.2989]
[1719363603037,7.3177,136.66,136.62,25.6183]
[1719363603243,7.317,136.67,136.62,25.6183]
[1719363603530,6.50712696,136.71,136.64,18.296]
[1719363603737,7.49487935,136.72,136.68,7.3159]
[1719363603931,24.799427,136.73,136.68,27.09]
[1719363604153,24.799427,136.73,136.7,7.3152]
[1719363604347,7.313,136.75,136.7,7.3152]
[1719363604650,7.3119,136.77,136.72,7.3141]
[1719363604865,7.3117,136.77,136.72,7.3141]
[1719363605038,7.49779473,136.79,136.73,7.3132]
[1719363605235,7.49769473,136.79,136.72,18.6249]
[1719363605438,7.3112,136.78,136.73,7.6535]
[1719363605661,0.18689473,136.79,136.72,18.4549]
[1719363605662,7.3117,136.77,136.72,18.4549]
[1719363605846,7.3121,136.76,136.72,18.4549]
[1719363606160,7.3133,136.74,136.69,18.2887]
[1719363606368,7.3127,136.75,136.7,7.6552]
[1719363606864,7.3122,136.76,136.7,7.6552]
[1719363607163,7.3122,136.76,136.71,7.3147]
[1719363607570,7.3126,136.75,136.7,7.6551]
[1719363608237,7.3131,136.74,136.7,0.17]
[1719363608439,7.3142,136.72,136.67,34.4064]
[1719363608753,7.3142,136.72,136.68,0.34]
[1719363609448,7.3137,136.73,136.68,7.6562]
[1719363610768,7.3142,136.72,136.69,0.92646054]
[1719363610944,7.3142,136.72,136.68,0.92646054]
[1719363612064,7.3142,136.72,136.68,8.24276054]
[1719363614269,7.3134,136.74,136.69,2.88007931]
[1719363614475,7.3134,136.74,136.7,7.3152]
[1719363614762,7.3134,136.74,136.69,7.4856]
[1719363614971,7.3134,136.74,136.69,7.3156]
[1719363615277,7.3137,136.73,136.69,7.3156]
[1719363616582,7.3137,136.73,136.68,25.7765]
[1719363618880,18.2823,136.75,136.68,0.17]
[1719363619079,7.3152,136.71,136.68,0.17]
[1719363619591,7.3152,136.71,136.67,29.8966]
[1719363619772,7.3142,136.72,136.68,7.3162]
[1719363619977,7.3138,136.73,136.68,7.3162]
[1719363620161,7.3138,136.73,136.69,7.3156]
[1719363620487,7.3133,136.74,136.69,7.3156]
[1719363621066,7.3139,136.73,136.69,7.3156]
[1719363621868,7.3139,136.73,136.68,34.4061]
[1719363622684,7.3142,136.72,136.67,75.2783]
[1719363622893,7.3142,136.72,136.68,0.34]
[1719363623995,7.3142,136.72,136.68,7.6563]
[1719363624186,7.3139,136.73,136.68,7.6563]
[1719363624388,7.3139,136.73,136.68,34.7458]
[1719363624880,7.3139,136.73,136.69,7.3158]
[1719363625276,7.3133,136.74,136.69,7.3158]
[1719363626271,7.3133,136.74,136.7,7.6552]
[1719363626682,7.3127,136.75,136.71,7.3145]
[1719363628898,7.3121,136.76,136.71,52.6913]
[1719363629095,7.3121,136.76,136.72,0.34]
[1719363629879,7.3108,136.79,136.74,7.313]
[1719363630084,7.3105,136.79,136.73,45.374]
[1719363630588,7.3111,136.78,136.73,25.5975]
[1719363630790,7.3117,136.77,136.73,18.284]
[1719363632177,7.3108,136.79,136.73,18.284]
[1719363632393,15.55329473,136.81,136.74,0.34]
[1719363632592,7.3106,136.79,136.74,7.6527]
[1719363637087,7.3101,136.8,136.75,7.3125]
[1719363637403,7.3105,136.79,136.75,7.3125]
[1719363637911,7.3101,136.8,136.75,7.3125]
[1719363638799,7.49639473,136.81,136.76,7.312]
[1719363638984,7.3095,136.81,136.76,7.482]
[1719363639714,7.3099,136.8,136.76,7.482]
[1719363640579,7.3094,136.81,136.77,7.3114]
[1719363640790,7.3094,136.81,136.76,0.17]
[1719363641012,7.3094,136.81,136.76,0.34]
[1719363641214,7.3094,136.81,136.76,7.6519]
[1719363641543,29.36428931,136.84,136.76,7.6519]
[1719363641544,7.3099,136.8,136.76,7.6519]
[1719363641710,7.3105,136.79,136.75,41.3267]
[1719363641927,7.3101,136.8,136.75,41.3267]
[1719363642587,7.3101,136.8,136.76,0.34]
[1719363643122,7.3105,136.79,136.76,0.34]
[1719363643318,7.3105,136.79,136.75,34.0143]
[1719363646216,7.3105,136.79,136.75,41.3269]
[1719363647221,7.3101,136.8,136.75,41.3269]
[1719363650122,7.3101,136.8,136.75,41.3269]
[1719363651533,7.3118,136.77,136.72,47.6981]
[1719363651711,7.3112,136.78,136.72,40.3841]
[1719363651911,7.3106,136.79,136.74,7.3127]
[1719363652114,7.3101,136.8,136.74,18.2824]
[1719363652619,7.3105,136.79,136.75,7.3122]
[1719363653812,7.5709107,136.83,136.76,7.312]
[1719363654012,47.63458931,136.84,136.76,13.8433]
[1719363654209,6.29626235,136.84,136.77,0.17]
[1719363654429,33.9315,136.87,136.79,7.3104]
[1719363654430,7.3085,136.83,136.79,7.3104]
[1719363655017,7.3085,136.83,136.78,25.5881]
[1719363659326,7.3089,136.82,136.78,25.5881]
[1719363660833,7.3106,136.79,136.76,21.7185]
[1719363661038,15.6651,136.87,136.76,21.7185]
[1719363661039,7.3101,136.8,136.76,21.7185]
[1719363661343,7.3101,136.8,136.76,29.0305]
[1719363661838,7.3101,136.8,136.76,21.7185]
[1719363662217,7.3101,136.8,136.76,29.0305]
[1719363663230,0.18689473,136.85,136.77,18.2785]
[1719363663436,0.18689473,136.85,136.79,7.3102]
[1719363663741,7.3079,136.84,136.79,7.3102]
[1719363663942,7.3083,136.83,136.79,7.3102]
[1719363666560,7.49459473,136.85,136.8,7.3095]
[1719363666738,14.07725059,136.88,136.82,7.3087]
[1719363667047,36.5103,136.95,136.83,27.09]
[1719363667048,15.6651,136.93,136.83,27.09]
[1719363667223,7.3046,136.9,136.86,7.3066]
[1719363667622,15.6851,136.94,136.87,7.3061]
[1719363667830,15.6851,136.94,136.88,7.3056]
[1719363668028,15.6851,136.94,136.86,45.3564]
[1719363668029,7.3039,136.92,136.87,7.306]
[1719363668238,15.6851,136.94,136.87,7.306]
[1719363668754,15.87199473,136.94,136.87,7.306]
[1719363669342,7.304,136.91,136.87,7.306]
[1719363669533,15.87199473,136.94,136.87,7.306]
[1719363670057,7.3037,136.92,136.87,7.306]
[1719363670238,7.3037,136.92,136.87,34.396]
[1719363672963,7.3037,136.92,136.89,6.6584]
[1719363673456,7.3031,136.93,136.89,6.6584]
[1719363673836,15.1161,136.97,136.89,6.6584]
[1719363674473,7.3041,136.91,136.89,6.6584]
[1719363674959,7.3037,136.92,136.89,6.6584]
[1719363677861,7.3049,136.9,136.86,6.0473]
[1719363678050,7.305,136.9,136.86,6.0473]
[1719363678254,7.3053,136.89,136.86,6.0473]
[1719363679741,30.0,136.88,136.86,6.0473]
[1719363681166,30.0,136.88,136.83,6.1102]
[1719363681372,7.3064,136.87,136.83,6.1102]
[1719363681545,30.0,136.88,136.83,6.1102]
[1719363681748,37.3058,136.88,136.83,13.4183]
[1719363681947,7.3058,136.88,136.83,13.4183]
[1719363682147,7.3058,136.88,136.84,7.3077]
[1719363682458,7.3058,136.88,136.83,31.6888]
[1719363684443,7.3051,136.89,136.83,24.3807]
[1719363684652,7.3051,136.89,136.84,0.34]
[1719363685471,7.3057,136.88,136.84,0.34]
[1719363686463,7.3057,136.88,136.83,31.6888]
[1719363687676,0.55946581,136.91,136.83,31.6888]
[1719363687677,7.3065,136.87,136.83,24.3807]
[1719363687963,7.3059,136.88,136.84,0.17]
[1719363688170,7.3059,136.88,136.84,0.34]
[1719363688544,7.3052,136.89,136.84,7.6474]
[1719363690467,7.57615636,136.93,136.86,7.3065]
[1719363690772,18.2573,136.94,136.86,7.3065]
[1719363691346,7.3042,136.91,136.86,7.3065]
[1719363691758,7.3042,136.91,136.87,0.34]
[1719363692271,15.80599473,136.95,136.87,0.34]
[1719363692471,7.3034,136.93,136.88,13.5202]
[1719363692851,7.3034,136.93,136.88,31.7834]
[1719363693055,0.18689473,136.95,136.89,7.6449]
[1719363693865,7.3021,136.95,136.9,7.3044]
[1719363694177,18.2526,136.97,136.89,34.5649]
[1719363694388,18.2526,136.97,136.89,7.4749]
[1719363694556,18.2526,136.97,136.9,0.17]
[1719363695051,18.2553,136.95,136.88,6.2147]
[1719363695553,0.18689473,136.96,136.9,15.7228]
[1719363695758,7.3026,136.94,136.9,23.0273]
[1719363696157,7.3022,136.95,136.91,0.17]
[1719363696367,7.3022,136.95,136.91,0.34]
[1719363696753,34.8528649,136.98,136.91,62.5893]
[1719363696754,0.8599649,136.98,136.91,62.5893]
[1719363696951,0.8599649,136.98,136.95,7.3016]
[1719363698960,0.8599649,136.98,136.96,0.34]
[1719363699362,0.8599649,136.98,136.94,13.6249]